[Event "13th All African Mixed Team Rapid-ch 202"]
[Site "Accra"]
[Date "2024.03.09"]
[Round "5.3"]
[White "Silva, David"]
[Black "Rakotomaharo, Fy Antenaina"]
[Result "0-1"]
[ECO "B22"]
[WhiteElo "2358"]
[BlackElo "2454"]
[Annotator "TA"]
[PlyCount "98"]
[EventDate "2024.03.07"]
[EventType "rapid"]
[EventCountry "GHA"]
[SourceTitle "playchess.com"]
[Source "ChessBase"]
[SourceQuality "1"]
[TimeControl "900+10"]

{[%evp 13,98,4,0,0,19,0,5,-4,-16,-16,-14,-23,-14,-18,-18,-24,-18,-31,0,-21,-15,-3,0,0,0,0,0,-12,-16,-29,-32,-293,-130,-122,-123,-118,-108,-119,-108,-116,-108,-118,-119,-118,-95,-109,-103,-116,-93,-110,-95,-104,-94,-121,-121,-124,-119,-119,-121,-178,-154,-181,-158,-158,-162,-153,-158,-165,-164,-188,-180,-231,-221,-215,-223,-201,-171,-240,-220,-199,-218,-612,-270,-490,0,-1877,-1645]} 1. e4 {[%emt 0:00:02][%cal Be2e4,Be4e5][%mdl 32]} c5 {[%emt 0:00:01]} 2. c3 {[%emt 0:00:00]} Nf6 {[%emt 0:00:03]} 3. e5 {[%emt 0:00:01]} Nd5 {[%emt 0:00:01]} 4. d4 {[%emt 0:00:01]} cxd4 {[%emt 0:00:01]} 5. Nf3 {[%emt 0:00:02]} e6 {[%emt 0:00:01]} 6. cxd4 {[%emt 0:00:06]} d6 {[%emt 0:00:01]} 7. Bc4 {[%emt 0:00:06]} Be7 {[%emt 0:00:03]} 8. O-O {[%emt 0:00:03]} O-O {[%emt 0:00:02]} 9. Qe2 {[%emt 0:00:03]} b6 {[%emt 0:00:02]} 10. Nbd2 {[%emt 0:00:13] The position is equal.} Bb7 {[%emt 0:03:08]} 11. Ne4 {[%emt 0:00:17]} dxe5 {[%emt 0:00:03]} 12. dxe5 {[%emt 0:00:19]} Nd7 {[%emt 0:00:03][%cal Bb8d7,Bd7f8,Bf8g6][%mdl 32]} 13. Bd2 {[%emt 0:01:05]} Qb8 {[%emt 0:01:20]} 14. Ng3 {[%emt 0:01:41]} Rc8 {[%emt 0:00:08]} 15. Rfe1 {[%emt 0:01:48]} Rc7 {[%emt 0:00:07]} 16. Rac1 {[%emt 0:00:37]} Qd8 {[%emt 0:00:12]} 17. Ne4 {[%emt 0:00:41]} Nf8 {[%emt 0:01:54]} 18. a3 {[%emt 0:01:56]} Ng6 {[%emt 0:00:18]} 19. g3 {[%emt 0:00:01]} Rac8 {[%emt 0:00:11]} 20. h4 {[%emt 0:00:22]} h6 {[%emt 0:00:02]} 21. Ba6 {[%emt 0:02:15]} (21. Red1 {seems wilder.} b5 22. Bxb5 Rxc1 23. Bxc1 Qc7 24. b4) 21... Rxc1 {[%emt 0:00:27]} 22. Rxc1 $4 {[%emt 0:00:32][%mdl 8192] [#]} ({White has to play} 22. Bxc1 $15 Bxa6 23. Qxa6) 22... Rxc1+ {[%emt 0:01:29]} (22... Ndf4 $1 $19 {[%cal Rf4e2] is more deadly.} 23. gxf4 (23. Bxf4 $2 {loses.} Nxf4 24. gxf4 Rxc1+ 25. Kg2 Ba8 $19) 23... Rxc1+ 24. Bxc1 Bxa6 25. Qxa6 Qd1+ (25... Bxh4 $2 26. Nd6 $18) 26. Kg2 Qxc1 27. Qxa7 Nxf4+ (27... Qxf4 28. Ng3 $19) 28. Kg3 Nd5) 23. Bxc1 $17 {[%emt 0:00:02]} Bxa6 {[%emt 0:00:13]} 24. Qxa6 {[%emt 0:00:10]} Qc7 {[%emt 0:00:01][%csl LRc1,LRe5] Inhibits Qb7.} 25. Bd2 {[%emt 0:02:50]} Nxe5 {[%emt 0:00:13]} 26. Nxe5 {[%emt 0:00:32]} Qxe5 {[%emt 0:00:02]} 27. Nc3 {[%emt 0:00:16]} Bc5 {[%emt 0:00:19]} 28. Qd3 {[%emt 0:01:28]} Nf6 {[%emt 0:00:05] Black is more active.} 29. b4 {[%emt 0:00:12]} Be7 $40 {[%emt 0:00:48][%mdl 128] Black has strong attack.} 30. Nb5 {[%emt 0:00:25]} Qa1+ {[%emt 0:00:49]} (30... a6 {simplifies} 31. Nc3 a5 32. Ne2 axb4 33. Bxb4 Bxb4 34. axb4 Qb2) 31. Kg2 {[%emt 0:00:11][%cal Od2c3]} a6 {[%emt 0:01:27]} 32. Nd4 {[%emt 0:01:01][%cal Od4c6]} Nd5 {[%emt 0:02:08]} (32... Qa2 {simplifies} 33. Nc6 Qd5+ 34. Qxd5 Nxd5 35. Nxe7+ Nxe7 36. a4 h5) 33. Nc6 {[%emt 0:00:07]} Bf6 {[%emt 0:00:02]} 34. Qxa6 {[%emt 0:00:18]} Qd1 {[%emt 0:00:02]} 35. Qd3 {[%emt 0:00:07]} Bxh4 {[%emt 0:00:26] ...Bg5 would now be deadly.} ({Don't play} 35... Bc3 $6 36. Ne7+ Nxe7 37. Qxc3 $11) 36. Nd4 {[%emt 0:00:27]} (36. gxh4 $2 {too greedy.} Nf4+ 37. Bxf4 Qxd3 $19) (36. Ne5 $17 Bf6 37. Nd7) 36... Bg5 {[%emt 0:01:16]} 37. Nf3 {[%emt 0:00:25]} Bxd2 {[%emt 0:00:03]} 38. Qxd2 $19 {[%emt 0:00:01][%mdl 4096] Endgame. KQN-KQN} Qb3 {[%emt 0:00:03]} 39. Qc1 {[%emt 0:00:02]} Qd3 {[%emt 0:00:05]} 40. Ne1 {[%emt 0:00:18]} Qe4+ {[%emt 0:00:04]} 41. Kg1 {[%emt 0:00:01]} g5 {[%emt 0:00:28]} 42. Ng2 {[%emt 0:00:02]} (42. Qd2 $142) 42... Qd3 {[%emt 0:00:20]} 43. Ne1 {[%emt 0:00:06]} Qe2 {[%emt 0:00:19]} 44. Ng2 {[%emt 0:00:05]} Nf6 {[%emt 0:00:15]} 45. Qc8+ {[%emt 0:00:17]} (45. a4 {was called for.}) 45... Kg7 {[%emt 0:00:39]} 46. Qc3 {[%emt 0:00:45]} Kg6 {[%emt 0:00:02][%cal Oe2f2] aiming for ...Qxf2+!} 47. Qd4 {[%emt 0:00:05]} (47. Qe3 Qxe3 48. Nxe3) 47... Ne4 {[%emt 0:01:04]} (47... Ng4 $142 {Hoping for ...b5.} 48. a4 Ne5 49. Nf4+ gxf4 50. Qxf4 Nf3+ 51. Kg2 Ne1+ 52. Kg1 e5) 48. Qxb6 {[%emt 0:00:22] [#]} (48. Qe3 Qxe3 49. Nxe3) 48... Nd2 $2 {[%emt 0:00:24]} (48... Qd1+ $1 $19 49. Kh2 Qf1) 49. Qe3 $2 {[%emt 0:00:11][%mdl 8192]} (49. Ne3 $11) 49... Nf3+ {[%emt 0:00:03] Weighted Error Value: White=0.54/Black=0.29 (precise) .  Loses game:     	White=2     	---        Missed win:     	---       	Black=1      Mistake:       	White=5     	Black=1      Inaccurate:     	---       	Black=1      OK:         	White=14    	Black=25     Best:        	White=1     	Black=1} 0-1

[Event "13th All African Mixed Team Rapid-ch 202"]
[Site "Accra"]
[Date "2024.03.09"]
[Round "5.4"]
[White "Tsinjoviniavo, Aina Mahasambatra"]
[Black "Junior, Ednasia"]
[Result "0-1"]
[ECO "B43"]
[WhiteElo "1681"]
[BlackElo "1915"]
[Annotator "NA RC"]
[PlyCount "78"]
[EventDate "2024.03.07"]
[EventType "rapid"]
[EventCountry "GHA"]
[SourceTitle "playchess.com"]
[Source "ChessBase"]
[SourceQuality "1"]
[TimeControl "900+10"]

1. e4 {[%emt 0:00:01]} c5 {[%emt 0:00:01]} 2. Nf3 {[%emt 0:00:03]} e6 {[%emt 0:00:01]} 3. d4 {[%emt 0:00:04]} cxd4 {[%emt 0:00:02]} 4. Nxd4 {[%emt 0:00:03]} a6 {[%emt 0:00:01]} 5. Nc3 {[%emt 0:00:09]} Qc7 {[%emt 0:00:01]} 6. Be2 {[%emt 0:00:06]} b5 {[%emt 0:00:19]} 7. a3 {[%emt 0:00:08]} Bb7 {[%emt 0:00:02]} 8. Bf3 {[%emt 0:00:38]} Nf6 {[%emt 0:01:05]} 9. O-O {[%emt 0:02:37]} d6 {[%emt 0:00:25]} 10. Re1 {[%emt 0:00:51]} Nbd7 {[%emt 0:00:22]} 11. Bg5 {[%emt 0:00:27]} Be7 {[%emt 0:00:06]} 12. Bh4 {[%emt 0:00:24]} O-O {[%emt 0:00:07]} 13. Bg3 {[%emt 0:00:12]} Ne5 {[%emt 0:00:23]} 14. Bxe5 {[%emt 0:00:28]} dxe5 {[%emt 0:00:03]} 15. Nb3 {[%emt 0:00:04]} Rac8 {[%emt 0:00:22]} 16. Qe2 {[%emt 0:00:27]} b4 {[%emt 0:00:21]} 17. axb4 {[%emt 0:00:40]} Bxb4 {[%emt 0:00:06]} 18. Ra4 {[%emt 0:00:40]} Bxc3 {[%emt 0:00:20]} 19. bxc3 {[%emt 0:00:03]} Qxc3 {[%emt 0:00:04]} 20. Rc1 {[%emt 0:00:20]} Qxb3 {[%emt 0:01:09]} 21. Raa1 {[%emt 0:00:48]} Qc4 {[%emt 0:00:35]} 22. Ra5 {[%emt 0:01:03]} Rfd8 {[%emt 0:01:58]} 23. h3 {[%emt 0:00:45]} Qxe2 {[%emt 0:00:49]} 24. Bxe2 {[%emt 0:00:03]} Rd2 {[%emt 0:00:33]} 25. Bf3 {[%emt 0:00:16]} Bxe4 {[%emt 0:00:36]} 26. Bxe4 {[%emt 0:00:06]} Nxe4 {[%emt 0:00:01]} 27. f3 {[%emt 0:00:12]} Ng3 {[%emt 0:00:15]} 28. Kh2 {[%emt 0:00:08]} Ne2 {[%emt 0:00:05]} 29. Rca1 {[%emt 0:00:08]} Nf4 {[%emt 0:00:20]} 30. Kh1 {[%emt 0:00:43]} Rc6 {[%emt 0:09:38]} 31. c4 Rxc4 {[%emt 0:00:00]} 32. Rxa6 {[%emt 0:00:26]} Rcc2 {[%emt 0:00:00]} 33. Re1 {[%emt 0:07:37]} h6 34. Rg1 {[%emt 0:00:00]} Nxh3 {[%emt 0:00:00]} 35. f4 {[%emt 0:00:00]} Nxg1 {[%emt 0:00:00]} 36. Ra8+ {[%emt 0:00:00]} Kh7 {[%emt 0:00:00]} 37. Rh8+ {[%emt 0:00:00]} Kxh8 {[%emt 0:00:00]} 38. fxe5 {[%emt 0:00:00]} Nf3 {[%emt 0:00:00]} 39. gxf3 {[%emt 0:00:00]} Rc1# {[%emt 0:00:00]} 0-1

[Event "13th All African Mixed Team Rapid-ch 202"]
[Site "Accra"]
[Date "2024.03.09"]
[Round "5.5"]
[White "Mwali, Chitumbo"]
[Black "KIGIGHA, Bomo Lovet"]
[Result "0-1"]
[ECO "A11"]
[WhiteElo "2340"]
[BlackElo "2231"]
[Annotator "TA"]
[PlyCount "96"]
[EventDate "2024.03.07"]
[EventType "rapid"]
[EventCountry "GHA"]
[SourceTitle "playchess.com"]
[Source "ChessBase"]
[SourceQuality "1"]
[TimeControl "900+10"]

{[%evp 10,96,12,0,0,0,0,-4,0,2,37,29,53,44,45,46,90,93,98,16,22,-10,66,57,80,83,89,83,87,64,213,195,269,214,519,499,474,406,406,205,377,319,347,316,308,304,308,242,256,202,202,147,141,31,238,75,229,215,229,227,233,193,183,74,81,-39,-39,-70,0,-177,-72,-734,-729,-1516,-903,-5634,-749,-5823,-5816,-5700,-5683,-6452,-6356,-5961,-5961,-29965,-605,-6162,-761]} 1. c4 {[%emt 0:00:01]} c6 {[%emt 0:00:01]} 2. g3 {[%emt 0:00:05]} d5 {[%emt 0:00:01]} 3. Bg2 {[%emt 0:00:01]} Nf6 {[%emt 0:00:02]} 4. Nf3 {[%emt 0:00:01][%cal Bg1f3,Bf3e1,Be1d3][%mdl 32]} dxc4 {[%emt 0:00:04]} 5. O-O {[%emt 0:00:08]} Nbd7 {[%emt 0:00:11]} 6. Qc2 {[%emt 0:00:53][%mdl 1024] White has compensation.} Nb6 {[%emt 0:00:03]} 7. a4 {[%emt 0:00:05]} a5 {[%emt 0:00:08]} 8. Na3 {[%emt 0:00:08]} Qd5 {[%emt 0:00:16] The position is equal.} 9. Ne1 {[%emt 0:00:07]} Qc5 {[%emt 0:00:28]} 10. d3 {[%emt 0:00:16]} Nfd5 {[%emt 0:01:49] Wards off Be3} 11. dxc4 {[%emt 0:00:26]} Nb4 {[%emt 0:00:06]} 12. Qb3 {[%emt 0:00:02] Be3 is the strong threat.} Qh5 {[%emt 0:00:13][%cal Oe7e5]} 13. Nd3 $1 {[%emt 0:02:23]} e5 {[%emt 0:00:09][%cal Ob6d7]} 14. Be3 {[%emt 0:01:38]} (14. Bd2 $16) 14... Nd7 $11 {[%emt 0:00:07]} 15. Nc2 {[%emt 0:00:44]} Na6 {[%emt 0:00:54]} (15... Nxc2 $11 16. Qxc2 Bd6) 16. Qc3 $36 {[%emt 0:00:31][%mdl 2048] White is pushing.} Nac5 {[%emt 0:00:21]} 17. b4 {[%emt 0:10:31]} Nxd3 {[%emt 0:00:17]} 18. exd3 {[%emt 0:00:00]} axb4 {[%emt 0:01:04]} 19. Nxb4 {[%emt 0:00:00]} Bxb4 {[%emt 0:00:21]} (19... Be7 $1 $14) 20. Qxb4 $18 {[%emt 0:00:00]} Qf5 {[%emt 0:00:18]} (20... f5 {keeps fighting.} 21. a5 Kf7) 21. d4 {[%emt 0:00:00]} exd4 $2 {[%emt 0:07:54]} (21... c5 22. dxc5 O-O) 22. Bxd4 {[%emt 0:00:00]} c5 {[%emt 0:00:01]} 23. Qe1+ {[%emt 0:00:00]} Kf8 {[%emt 0:00:17]} 24. Be3 {[%emt 0:00:00]} (24. Bc3 $142) 24... Ra6 $2 {[%emt 0:00:32]} (24... Kg8 25. Rd1 h6) 25. a5 {[%emt 0:00:00]} h5 {[%emt 0:00:13]} 26. Qb1 {[%emt 0:00:00]} Qxb1 {[%emt 0:00:04]} 27. Rfxb1 {[%emt 0:00:00]} Ra7 {[%emt 0:00:14]} 28. Bh3 {[%emt 0:00:00] aiming for Bxd7.} Ke7 {[%emt 0:00:29]} 29. Re1 {[%emt 0:00:00]} Kf6 {[%emt 0:00:26]} 30. Rad1 {[%emt 0:00:00] Intending Rd6+ and mate.} Ne5 {[%emt 0:00:11]} 31. Bg2 {[%emt 0:00:03]} (31. Bxc5 $6 Nf3+ 32. Kh1 Bxh3 $11) ({White must play} 31. Rd6+ $16 Be6 32. Bg5+ (32. Bxc5 Nf3+ 33. Kf1 Rxa5 $16) 32... Kxg5 33. Rxe5+ Kf6 34. f4 (34. Rxc5 Ke7 $15)) 31... Rxa5 $2 {[%emt 0:00:05] [#]} (31... Nxc4 $14 32. Bxc5 Rxa5) 32. h4 $2 {[%emt 0:00:49]} (32. Rd6+ $1 $18 Be6 33. h4) 32... Kg6 $2 {[%emt 0:01:40]} (32... Nxc4 $16 {was worth a try.} 33. Bf4 Ra6) 33. Bd2 {[%emt 0:00:22][%csl LRa5,LRe5] A strong pair of Bishops.} Nxc4 {[%emt 0:00:08]} 34. Bxa5 {[%emt 0:00:11]} Nxa5 {[%emt 0:00:01]} 35. Rd5 {[%emt 0:00:14]} Nb3 {[%emt 0:00:54]} 36. Rg5+ {[%emt 0:01:06]} (36. Rd6+ $18 {and White stays clearly on top.} Be6 37. Rexe6+ (37. Bxb7 Kf6 $16) 37... fxe6 38. Rxe6+ (38. Bxb7 Kf6 $15) 38... Kh7 (38... Kf7 $2 39. Bd5 $18) 39. Be4+ (39. Bxb7 Rd8 $18) 39... g6 40. Rxg6 (40. Bxg6+ Kg7 $14)) 36... Kf6 $16 {[%emt 0:00:20]} 37. Bd5 {[%emt 0:00:16]} ({Better is} 37. Re3 $16 c4 38. Rc3 (38. Rf3+ Ke7 $14)) 37... Nd4 $15 {[%emt 0:00:05]} 38. Kg2 {[%emt 0:00:07]} Rd8 {[%emt 0:00:23]} (38... g6 $15 39. Be4 Bf5) 39. Re4 $2 {[%emt 0:00:12]} (39. Be4 $11 {and White has nothing to worry.}) 39... Bf5 {[%emt 0:00:18]} (39... Nf5 $19 {has better winning chances.} 40. Bc4 g6) 40. Rxd4 {[%emt 0:00:17][%mdl 8192]} cxd4 $19 {[%emt 0:00:02]} 41. Bxb7 $17 {[%emt 0:00:02][%mdl 4096] Endgame. KRB-KRB} d3 {[%emt 0:00:50]} 42. Bf3 {[%emt 0:00:05]} d2 {[%emt 0:00:00]} (42... g6 $142 43. Bd1 Re8 44. Rxf5+ Kxf5) 43. Bd1 {[%emt 0:00:01]} g6 {[%emt 0:00:00]} 44. f3 {[%emt 0:00:07]} Re8 {[%emt 0:00:00]} 45. g4 {[%emt 0:00:05]} Re1 {[%emt 0:00:00]} 46. Ba4 {[%emt 0:00:02]} hxg4 {[%emt 0:00:00] ( -> ...Ra1)} (46... d1=B 47. Bxd1 hxg4 (47... Rxd1 48. gxf5 Rd5 49. fxg6 $11) 48. fxg4 $15) 47. fxg4 {[%emt 0:00:01] [#]} Bd7 $1 {[%emt 0:00:01][%mdl 512]} 48. Bb3 {[%emt 0:00:19]} (48. Rd5 Bxa4) 48... d1=Q {[%emt 0:00:17] Weighted Error Value: White=1.23/Black=0.71.  Loses game:     	White=2     	Black=1      Missed win:     	White=1     	---        Mistake:       	White=5     	Black=8      Inaccurate:     	White=3     	Black=2      OK:         	White=6     	Black=9      Best:        	White=1     	Black=4      Strong:       	White=1     	---} (48... Rb1 $142 49. Bc2 Rb2 (49... d1=Q $2 50. Bxd1 Rxd1 51. Kh2 $19) (49... d1=R $2 50. Bxb1 Rxb1 51. Kf2 $19)) 0-1

[Event "13th All African Mixed Team Rapid-ch 202"]
[Site "Accra"]
[Date "2024.03.09"]
[Round "5.6"]
[White "PEACE SAMSON"]
[Black "Mbatha, Constance"]
[Result "1-0"]
[ECO "C50"]
[WhiteElo "1870"]
[BlackElo "1799"]
[Annotator "NA RC"]
[PlyCount "91"]
[EventDate "2024.03.07"]
[EventType "rapid"]
[EventCountry "GHA"]
[SourceTitle "playchess.com"]
[Source "ChessBase"]
[SourceQuality "1"]
[TimeControl "900+10"]

1. e4 {[%emt 0:00:03]} e5 {[%emt 0:00:02]} 2. Nf3 {[%emt 0:00:01]} Nc6 {[%emt 0:00:02]} 3. Bc4 {[%emt 0:00:03]} h6 {[%emt 0:00:02]} 4. d4 {[%emt 0:00:21]} exd4 {[%emt 0:00:26]} 5. Nxd4 {[%emt 0:00:01]} Nxd4 {[%emt 0:00:27]} 6. Qxd4 {[%emt 0:00:02]} d6 {[%emt 0:00:12]} 7. O-O {[%emt 0:01:39]} Be6 {[%emt 0:00:41]} 8. e5 {[%emt 0:00:58]} d5 {[%emt 0:00:08]} 9. Bb3 {[%emt 0:00:06]} Ne7 {[%emt 0:01:10]} 10. f4 {[%emt 0:01:10]} c6 {[%emt 0:01:14]} 11. Nc3 {[%emt 0:00:24]} b6 {[%emt 0:00:38]} 12. Kh1 {[%emt 0:00:55]} Nf5 {[%emt 0:00:29]} 13. Qd3 {[%emt 0:01:03]} Bc5 {[%emt 0:00:56]} 14. Na4 {[%emt 0:00:20]} Be7 {[%emt 0:01:16]} 15. Nc3 {[%emt 0:02:59]} Bc5 {[%emt 0:00:17]} 16. Ne2 {[%emt 0:01:05]} h5 {[%emt 0:01:24]} 17. Ba4 {[%emt 0:00:18]} b5 {[%emt 0:00:30]} 18. Bxb5 {[%emt 0:00:11]} Qb6 {[%emt 0:01:33]} 19. Ba4 {[%emt 0:00:06]} O-O {[%emt 0:00:36]} 20. Bb3 {[%emt 0:00:18]} Rad8 {[%emt 0:00:37]} 21. Bd2 {[%emt 0:00:27]} Be7 {[%emt 0:00:23]} 22. Ng3 {[%emt 0:00:26]} Nxg3+ {[%emt 0:00:25]} 23. Qxg3 {[%emt 0:00:03]} Bf5 {[%emt 0:00:07]} 24. Qe1 {[%emt 0:01:05]} c5 {[%emt 0:00:19]} 25. Ba5 {[%emt 0:00:02]} Qc6 {[%emt 0:00:15]} 26. Bxd8 {[%emt 0:00:02]} Rxd8 {[%emt 0:00:01]} 27. c3 {[%emt 0:00:20]} d4 {[%emt 0:00:46]} 28. cxd4 {[%emt 0:00:10]} cxd4 {[%emt 0:01:02]} 29. Rc1 {[%emt 0:00:03]} Qa8 {[%emt 0:00:01]} 30. Rc7 {[%emt 0:00:24]} Bh3 {[%emt 0:01:06]} 31. Qg3 {[%emt 0:00:18]} Bg4 {[%emt 0:00:47]} 32. Rxe7 {[%emt 0:00:13]} Rf8 {[%emt 0:00:04]} 33. h3 {[%emt 0:00:30]} Be2 {[%emt 0:00:05]} 34. Re1 {[%emt 0:00:29]} d3 {[%emt 0:00:02]} 35. e6 {[%emt 0:00:24]} Qd8 {[%emt 0:00:35]} 36. Rd7 {[%emt 0:02:12]} Qf6 {[%emt 0:00:23]} 37. exf7+ {[%emt 0:01:27]} Kh7 {[%emt 0:00:12]} 38. Bc4 {[%emt 0:00:07]} g6 {[%emt 0:00:53]} 39. Bxd3 {[%emt 0:00:16]} Bxd3 {[%emt 0:00:13]} 40. Qxd3 {[%emt 0:00:09]} Rxf7 {[%emt 0:00:59]} 41. Rxf7+ {[%emt 0:00:07]} Qxf7 {[%emt 0:00:01]} 42. Qd6 {[%emt 0:00:10]} Qxa2 {[%emt 0:00:51]} 43. Re7+ {[%emt 0:00:04]} Kh6 {[%emt 0:00:00]} 44. Qe5 {[%emt 0:00:17]} Qb1+ {[%emt 0:00:00]} 45. Kh2 {[%emt 0:00:01]} Qf5 {[%emt 0:00:18]} 46. Qh8# {[%emt 0:00:05]} 1-0

[Event "13th All African Mixed Team Rapid-ch 202"]
[Site "Accra"]
[Date "2024.03.09"]
[Round "5.7"]
[White "Mhango, Banele"]
[Black "Zhemba, Jemusse"]
[Result "1-0"]
[ECO "C11"]
[WhiteElo "2193"]
[BlackElo "2226"]
[Annotator "TA"]
[PlyCount "125"]
[EventDate "2024.03.07"]
[EventType "rapid"]
[EventCountry "GHA"]
[SourceTitle "playchess.com"]
[Source "ChessBase"]
[SourceQuality "1"]
[TimeControl "900+10"]

{[%evp 22,125,-4,-9,0,-16,-22,-12,-12,-14,0,0,25,30,39,41,21,15,46,0,34,32,36,32,140,50,46,47,45,43,39,42,56,58,81,22,24,33,26,16,31,30,36,36,84,9,68,67,90,90,91,84,87,92,132,120,146,142,169,125,97,56,103,83,93,0,20,0,84,60,142,130,215,194,212,70,85,64,63,62,62,21,559,542,1075,1014,772,984,1397,1385,1277,78,1277,1423,1192,1047,29959,29959,29966,6845,29985,5210,29981,29982,12850,6123]} 1. d4 {[%emt 0:00:02]} Nf6 {[%emt 0:00:02]} 2. Nc3 {[%emt 0:00:03]} e6 {[%emt 0:00:16]} 3. e4 {[%emt 0:00:18]} d5 {[%emt 0:00:11]} 4. e5 {[%emt 0:00:33]} Nfd7 {[%emt 0:00:08]} 5. f4 {[%emt 0:00:05]} c5 {[%emt 0:00:19]} 6. Nf3 {[%emt 0:00:02]} a6 {[%emt 0:00:08]} 7. Be3 {[%emt 0:00:22]} Nc6 {[%emt 0:00:03]} 8. Qd2 {[%emt 0:00:02]} b5 {[%emt 0:00:11]} 9. dxc5 {[%emt 0:00:16]} Bxc5 {[%emt 0:00:17]} 10. Bxc5 {[%emt 0:01:35]} Nxc5 {[%emt 0:00:03]} 11. Nd4 {[%emt 0:00:08]} Nxd4 {[%emt 0:00:44] C11: Französische Verteidigung.} 12. Qxd4 {[%emt 0:00:01]} Qe7 {[%emt 0:00:07]} 13. Bd3 {[%emt 0:00:47]} b4 {[%emt 0:00:24]} 14. Ne2 {[%emt 0:00:12]} Bd7 {[%emt 0:00:07]} 15. O-O {[%emt 0:00:24]} Rc8 $146 {[%emt 0:00:48]} ({Predecessor:} 15... Nxd3 16. cxd3 Bb5 17. Rfc1 O-O 18. Rc2 Rfc8 19. Rac1 Qd7 20. Rc5 Rxc5 21. Qxc5 Bxd3 {1-0 Setkauskas,V (2236)-Zitinskas,L (1820) LTU-ch U18 Siauliai 2011 (1)}) 16. Qe3 {[%emt 0:02:56]} f5 {[%emt 0:01:13]} 17. exf6 {[%emt 0:00:24]} Qxf6 {[%emt 0:00:04]} 18. Nd4 {[%emt 0:00:26]} O-O {[%emt 0:00:09]} 19. a3 {[%emt 0:01:01]} Rb8 {[%emt 0:00:40]} 20. b3 {[%emt 0:00:35]} (20. Be2 $14) 20... Rfc8 {[%emt 0:00:34]} 21. Rfd1 {[%emt 0:01:36]} Rf8 {[%emt 0:02:41]} 22. g3 {[%emt 0:00:18]} Rfe8 {[%emt 0:00:08]} (22... Nxd3 $14 23. Rxd3 bxa3) 23. Nf3 {[%emt 0:01:17]} (23. axb4 $16 Rxb4 24. Bf1 (24. Bxa6 e5 $14)) 23... Nxd3 $14 {[%emt 0:00:21]} 24. Qxd3 {[%emt 0:00:05]} Bb5 {[%emt 0:00:10]} 25. Qd2 {[%emt 0:00:13]} bxa3 {[%emt 0:00:17]} 26. Rxa3 {[%emt 0:00:02]} Qb2 {[%emt 0:00:14]} 27. Raa1 {[%emt 0:01:05]} Rbc8 {[%emt 0:00:12]} 28. Rdc1 {[%emt 0:00:20]} (28. Nd4 $16) 28... Qc3 $11 {[%emt 0:00:24]} 29. Qxc3 {[%emt 0:00:05]} Rxc3 {[%emt 0:00:03]} 30. Nd4 {[%emt 0:00:14]} e5 {[%emt 0:00:12]} 31. fxe5 {[%emt 0:00:04]} Rxe5 {[%emt 0:09:10]} 32. Re1 {[%emt 0:00:15]} Re4 {[%emt 0:00:00]} (32... Rg5 $14) 33. Rad1 {[%emt 0:00:10]} (33. Rxe4 $1 $16 dxe4 34. Kf2) 33... h6 {[%emt 0:00:00]} (33... Bd3 $11) 34. Kf2 $1 $14 {[%emt 0:00:13]} Be8 {[%emt 0:00:00]} 35. Rxe4 $1 {[%emt 0:00:30]} dxe4 {[%emt 0:00:00]} 36. Re1 {[%emt 0:00:02]} Bg6 {[%emt 0:00:00]} 37. Re3 {[%emt 0:00:03]} Rc5 {[%emt 0:00:00]} 38. c4 {[%emt 0:00:38]} Rh5 {[%emt 0:00:00]} 39. h4 {[%emt 0:00:04]} Ra5 {[%emt 0:00:00]} 40. Re2 {[%emt 0:00:22]} Ra1 {[%emt 0:00:00]} 41. Ke3 {[%emt 0:00:07]} Rd1 {[%emt 0:00:00]} (41... a5 $14) 42. Rd2 $16 {[%emt 0:00:20]} Re1+ {[%emt 0:00:00]} 43. Re2 {[%emt 0:00:16]} (43. Kf2 $16 Rh1 44. Ke3) 43... Rd1 $11 {[%emt 0:00:00]} 44. Rd2 {[%emt 0:00:09]} Rg1 {[%emt 0:00:00]} (44... Re1+ $1 $11 {bleibt in der Remisbreite.} 45. Kf4 Rf1+ (45... e3 46. Ra2 $16) 46. Ke5 (46. Ke3 Rg1 $16) 46... Re1) 45. Kf2 {[%emt 0:00:19]} Rc1 {[%emt 0:00:00]} (45... e3+ $14 46. Kxe3 (46. Kxg1 $2 {ist das falsche Schlagen.} exd2 47. Kf2 d1=Q $19) 46... Rxg3+ 47. Kf4 Rd3 48. Rxd3 Bxd3) 46. Ra2 $16 {[%emt 0:00:44]} Rd1 {[%emt 0:00:00]} (46... Rc3 $16 {kämpft weiter.}) 47. Rxa6 $18 {[%emt 0:00:27]} Kh7 {[%emt 0:00:00]} 48. Rd6 {[%emt 0:00:45]} ({Besser ist} 48. Nc6 $18) 48... Rd2+ $14 {[%emt 0:00:00]} 49. Ke1 {[%emt 0:00:17]} e3 {[%emt 0:00:00]} 50. g4 {[%emt 0:01:34]} h5 $1 {[%emt 0:00:00]} 51. g5 {[%emt 0:00:12]} Rh2 $2 {[%emt 0:01:13][%mdl 8192] [#]} (51... Be4 $1 $11 {und Schwarz ist OK.}) 52. Nf3 $1 $18 {[%emt 0:00:13]} Rf2 {[%emt 0:00:04]} 53. Ne5 {[%emt 0:00:12]} Bc2 {[%emt 0:02:06]} 54. g6+ {[%emt 0:00:04]} Kg8 {[%emt 0:00:27]} 55. Rd8+ Rf8 {[%emt 0:00:00]} 56. Rxf8+ {[%emt 0:00:31]} Kxf8 {[%emt 0:00:00] [#]} 57. b4 $1 {[%emt 0:00:13]} Ke7 {[%emt 0:00:00]} 58. Ke2 {[%emt 0:00:01]} Ke6 {[%emt 0:00:00]} 59. Nd3 {[%emt 0:00:10]} Kf5 {[%emt 0:00:26]} 60. Kxe3 {[%emt 0:00:01]} Kxg6 {[%emt 0:00:05]} 61. Nf4+ {[%emt 0:00:12]} (61. b5 $142 Kh7 62. b6 g5 63. hxg5 (63. b7 Bd1 64. hxg5 Kg7 65. b8=Q Bc2 66. Ne5 Bg6 67. Qd6 Bf5 68. Qf6+ Kg8 69. Qxf5 Kh8 70. Qf8+ Kh7 71. g6#) 63... h4 64. b7 Bxd3 65. Kxd3 (65. b8=B Bxc4 66. g6+ Kxg6 $11) 65... Kg6 66. b8=Q (66. b8=B Kxg5 67. c5 Kf5 68. c6 Ke6 69. Bh2 Ke7 70. c7 Kd7)) 61... Kh6 {[%emt 0:00:13]} 62. b5 {[%emt 0:00:10]} Ba4 {[%emt 0:00:12]} 63. Ne6 {[%emt 0:00:16]} (63. b6 $142 Bc6 64. Ne6) 1-0